[Event "Vegagatan O1800 RPD"]
[Site "Goteborgs Schackcentrum, Vegatan 20, Gothenburg, Sweden"]
[Date "2025.05.03"]
[Round "4.1"]
[White "Karlsson, Roger"]
[Black "Gallardo, Guillermo"]
[Result "0-1"]
[TimeControl "29 minutes + 30 seconds per move from move one"]
[WhiteFideId "1732293"]
[BlackFideId "1773488"]
[WhiteElo "1886"]
[BlackElo "1779"]

1. d4 {[%clk 00:29:56]} {[%emt 00:00:04]} d5 {[%clk 00:29:59]} {[%emt
00:00:02]} 2. Bg5 {[%clk 00:30:24]} {[%emt 00:00:02]} Nf6 {[%clk 00:30:26]}
{[%emt 00:00:03]} 3. Bxf6 {[%clk 00:30:52]} {[%emt 00:00:02]} exf6 {[%clk
00:30:53]} {[%emt 00:00:03]} 4. e3 {[%clk 00:31:20]} {[%emt 00:00:02]} Bd6
{[%clk 00:31:18]} {[%emt 00:00:05]} 5. Nf3 {[%clk 00:31:28]} {[%emt 00:00:21]}
Be6 {[%clk 00:31:46]} {[%emt 00:00:03]} 6. Bd3 {[%clk 00:31:43]} {[%emt
00:00:14]} Nd7 {[%clk 00:32:04]} {[%emt 00:00:12]} 7. O-O {[%clk 00:32:07]}
{[%emt 00:00:06]} O-O {[%clk 00:32:30]} {[%emt 00:00:04]} 8. Nbd2 {[%clk
00:32:24]} {[%emt 00:00:13]} c6 {[%clk 00:32:47]} {[%emt 00:00:14]} 9. Rb1
{[%clk 00:32:14]} {[%emt 00:00:39]} b5 {[%clk 00:33:01]} {[%emt 00:00:17]} 10.
a4 {[%clk 00:32:28]} {[%emt 00:00:15]} a6 {[%clk 00:33:28]} {[%emt 00:00:04]}
11. c3 {[%clk 00:32:47]} {[%emt 00:00:10]} Qc7 {[%clk 00:33:26]} {[%emt
00:00:32]} 12. h3 {[%clk 00:32:49]} {[%emt 00:00:28]} Nb6 {[%clk 00:33:23]}
{[%emt 00:00:34]} 13. b3 {[%clk 00:32:23]} {[%emt 00:00:55]} Rfb8 {[%clk
00:32:52]} {[%emt 00:01:02]} 14. a5 {[%clk 00:32:42]} {[%emt 00:00:10]} Nd7
{[%clk 00:33:16]} {[%emt 00:00:07]} 15. b4 {[%clk 00:33:10]} {[%emt 00:00:02]}
Re8 {[%clk 00:33:31]} {[%emt 00:00:15]} 16. Nb3 {[%clk 00:32:55]} {[%emt
00:00:44]} Nf8 {[%clk 00:30:50]} {[%emt 00:03:12]} 17. Re1 {[%clk 00:32:02]}
{[%emt 00:01:22]} f5 {[%clk 00:28:55]} {[%emt 00:02:25]} 18. Qc2 {[%clk
00:31:53]} {[%emt 00:00:39]} g6 {[%clk 00:26:02]} {[%emt 00:03:23]} 19. h4
{[%clk 00:30:58]} {[%emt 00:01:25]} Nd7 {[%clk 00:26:02]} {[%emt 00:00:30]} 20.
Ng5 {[%clk 00:30:16]} {[%emt 00:01:12]} Nf6 {[%clk 00:26:04]} {[%emt 00:00:28]}
21. Nxe6 {[%clk 00:30:26]} {[%emt 00:00:21]} Rxe6 {[%clk 00:24:05]} {[%emt
00:02:29]} 22. Nd2 {[%clk 00:30:36]} {[%emt 00:00:20]} Rae8 {[%clk 00:24:04]}
{[%emt 00:00:31]} 23. Nf3 {[%clk 00:31:03]} {[%emt 00:00:02]} Ne4 {[%clk
00:23:55]} {[%emt 00:00:39]} 24. Rf1 {[%clk 00:31:13]} {[%emt 00:00:21]} f6
{[%clk 00:20:10]} {[%emt 00:04:15]} 25. Ne1 {[%clk 00:27:14]} {[%emt 00:04:28]}
f4 {[%clk 00:15:54]} {[%emt 00:04:47]} 26. exf4 {[%clk 00:26:37]} {[%emt
00:01:07]} Bxf4 {[%clk 00:16:06]} {[%emt 00:00:18]} 27. Nf3 {[%clk 00:26:46]}
{[%emt 00:00:20]} Kg7 {[%clk 00:14:45]} {[%emt 00:01:51]} 28. Rfd1 {[%clk
00:23:38]} {[%emt 00:03:37]} Qe7 {[%clk 00:06:18]} {[%emt 00:08:58]} 29. Kf1
{[%emt 00:04:12]} Qc7 {[%clk 00:04:15]} 30. Ng1 {[%clk 00:22:23]} {[%emt
00:00:36]} f5 {[%clk 00:03:55]} {[%emt 00:00:51]} 31. Ne2 {[%clk 00:19:50]}
{[%emt 00:03:02]} Bh6 {[%clk 00:03:53]} {[%emt 00:00:32]} 32. Kg1 {[%clk
00:14:37]} {[%emt 00:05:43]} Nxf2 {[%clk 00:01:45]} {[%emt 00:02:39]} 33. Kxf2
{[%clk 00:12:38]} {[%emt 00:02:29]} Be3+ {[%clk 00:00:42]} {[%emt 00:01:33]} 34.
Kf3 {[%clk 00:09:56]} {[%emt 00:03:12]} Bh6 {[%clk 00:00:38]} {[%emt 00:00:33]}
35. g3 {[%clk 00:09:37]} {[%emt 00:00:50]} Rxe2 {[%clk 00:00:45]} {[%emt
00:00:23]} 36. Qxe2 {[%clk 00:09:03]} {[%emt 00:01:03]} Rxe2 {[%clk 00:01:06]}
{[%emt 00:00:09]} 37. Bxe2 {[%clk 00:09:32]} {[%emt 00:00:01]} Qe7 {[%clk
00:01:21]} {[%emt 00:00:16]} 38. Bd3 {[%clk 00:09:23]} {[%emt 00:00:39]} Qe3+
{[%clk 00:01:33]} {[%emt 00:00:18]} 39. Kg2 {[%clk 00:09:46]} {[%emt 00:00:06]}
f4 {[%clk 00:01:57]} {[%emt 00:00:06]} 40. gxf4 {[%clk 00:08:12]} {[%emt
00:02:04]} Bxf4 {[%clk 00:02:15]} {[%emt 00:00:12]} 41. Rb2 {[%clk 00:08:19]}
{[%emt 00:00:24]} Qg3+ {[%clk 00:02:06]} {[%emt 00:00:38]} 42. Kf1 {[%clk
00:08:20]} {[%emt 00:00:29]} Qf3+ {[%clk 00:02:12]} {[%emt 00:00:24]} 43. Ke1
{[%clk 00:08:19]} {[%emt 00:00:31]} Qh1+ {[%clk 00:00:49]} {[%emt 00:01:53]} 44.
Bf1 {[%clk 00:08:27]} {[%emt 00:00:22]} Qxh4+ {[%clk 00:01:05]} {[%emt
00:00:14]} 45. Ke2 {[%clk 00:08:32]} {[%emt 00:00:26]} Qh2+ {[%clk 00:01:30]}
{[%emt 00:00:04]} 46. Kf3 {[%clk 00:08:36]} {[%emt 00:00:26]} Qg3+ {[%clk
00:01:49]} {[%emt 00:00:11]} 0-1

[ePGN "0.1;DGT LiveChess/2.2.7"]

[Event "Vegagatan O1800 RPD"]
[Site "Goteborgs Schackcentrum, Vegatan 20, Gothenburg, Sweden"]
[Date "2025.05.03"]
[Round "4.2"]
[White "Kenani, Dariush"]
[Black "Klouda, James"]
[Result "1-0"]
[TimeControl "29 minutes + 30 seconds per move from move one"]
[WhiteFideId "1707973"]
[BlackFideId "1795759"]
[WhiteElo "2075"]
[BlackElo "1814"]

1. e4 {[%clk 00:29:45]} {[%emt 00:00:14]} c6 {[%clk 00:29:48]} {[%emt
00:00:12]} 2. d4 {[%clk 00:29:33]} {[%emt 00:00:42]} d5 {[%clk 00:30:10]}
{[%emt 00:00:08]} 3. Nc3 {[%clk 00:29:17]} {[%emt 00:00:47]} Nf6 {[%clk
00:28:59]} {[%emt 00:01:41]} 4. e5 {[%clk 00:29:01]} {[%emt 00:00:45]} Ng8
{[%clk 00:29:01]} {[%emt 00:00:28]} 5. f4 {[%clk 00:29:01]} {[%emt 00:00:30]}
c5 {[%clk 00:29:23]} {[%emt 00:00:09]} 6. dxc5 {[%clk 00:28:30]} {[%emt
00:01:01]} e6 {[%clk 00:29:44]} {[%emt 00:00:08]} 7. Be3 {[%clk 00:28:08]}
{[%emt 00:00:52]} Nc6 {[%clk 00:30:05]} {[%emt 00:00:09]} 8. Nf3 {[%clk
00:27:46]} {[%emt 00:00:51]} Nh6 {[%clk 00:29:09]} {[%emt 00:01:27]} 9. Bb5
{[%clk 00:27:25]} {[%emt 00:00:51]} Nf5 {[%clk 00:29:14]} {[%emt 00:00:25]} 10.
Bf2 {[%clk 00:26:58]} {[%emt 00:00:56]} Bd7 {[%clk 00:28:59]} {[%emt 00:00:47]}
11. O-O {[%clk 00:25:57]} {[%emt 00:01:30]} a6 {[%clk 00:29:03]} {[%emt
00:00:27]} 12. Bxc6 {[%clk 00:25:47]} {[%emt 00:00:39]} Bxc6 {[%clk 00:29:19]}
{[%emt 00:00:13]} 13. a4 {[%clk 00:25:24]} {[%emt 00:00:54]} Qa5 {[%clk
00:29:28]} {[%emt 00:00:22]} 14. Nd4 {[%clk 00:24:33]} {[%emt 00:01:19]} Bxc5
{[%clk 00:28:54]} {[%emt 00:01:06]} 15. Nce2 {[%clk 00:23:40]} {[%emt
00:01:22]} Rc8 {[%clk 00:25:55]} {[%emt 00:03:29]} 16. Kh1 {[%clk 00:23:53]}
{[%emt 00:00:17]} Nxd4 {[%clk 00:24:46]} {[%emt 00:01:39]} 17. Nxd4 {[%clk
00:23:20]} {[%emt 00:01:04]} Bxd4 {[%clk 00:24:32]} {[%emt 00:00:43]} 18. Bxd4
{[%clk 00:22:50]} {[%emt 00:01:00]} O-O {[%clk 00:23:34]} {[%emt 00:01:29]} 19.
c3 {[%clk 00:22:13]} {[%emt 00:01:07]} Qd8 {[%clk 00:23:30]} {[%emt 00:00:34]}
20. f5 {[%clk 00:22:05]} {[%emt 00:00:37]} Qg5 {[%clk 00:23:18]} {[%emt
00:00:42]} 21. f6 {[%clk 00:21:39]} {[%emt 00:00:57]} gxf6 {[%clk 00:21:50]}
{[%emt 00:01:58]} 22. Rxf6 {[%clk 00:21:56]} {[%emt 00:00:12]} Kh8 {[%clk
00:22:16]} {[%emt 00:00:04]} 23. Qf3 {[%clk 00:21:34]} {[%emt 00:00:52]} Rc7
{[%clk 00:21:42]} {[%emt 00:01:04]} 24. Rxe6 {[%clk 00:20:16]} {[%emt
00:01:48]} f5 {[%clk 00:19:35]} {[%emt 00:02:36]} 25. exf6 {[%clk 00:19:47]}
{[%emt 00:00:59]} Rff7 {[%clk 00:19:48]} {[%emt 00:00:19]} 26. Rae1 {[%clk
00:19:02]} {[%emt 00:01:14]} Kg8 {[%clk 00:18:08]} {[%emt 00:02:10]} 27. b3
{[%clk 00:16:57]} {[%emt 00:02:35]} Bd7 {[%clk 00:16:43]} {[%emt 00:01:55]} 28.
R6e5 {[%clk 00:16:09]} {[%emt 00:01:17]} Qxf6 {[%clk 00:16:16]} {[%emt
00:00:57]} 29. Re8+ {[%clk 00:16:09]} {[%emt 00:00:31]} Bxe8 {[%clk 00:15:52]}
{[%emt 00:00:54]} 30. Bxf6 {[%clk 00:14:59]} {[%emt 00:01:39]} Bc6 {[%clk
00:15:59]} {[%emt 00:00:24]} 31. Qg3+ {[%clk 00:14:47]} {[%emt 00:00:41]} Kf8
{[%clk 00:16:17]} {[%emt 00:00:12]} 32. Qd6+ {[%clk 00:14:49]} {[%emt
00:00:28]} Kg8 {[%clk 00:16:32]} {[%emt 00:00:16]} 33. Qd8+ {[%clk 00:14:32]}
{[%emt 00:00:46]} 1-0

[ePGN "0.1;DGT LiveChess/2.2.7"]

[Event "Vegagatan O1800 RPD"]
[Site "Goteborgs Schackcentrum, Vegatan 20, Gothenburg, Sweden"]
[Date "2025.05.03"]
[Round "4.3"]
[White "Garby, Jacob"]
[Black "Torres, Lucas"]
[Result "0-1"]
[TimeControl "29 minutes + 30 seconds per move from move one"]
[WhiteFideId "1786520"]
[BlackFideId "1769464"]
[WhiteElo "1820"]
[BlackElo "1998"]

1. d4 {[%clk 00:29:58]} {[%emt 00:00:02]} Nf6 {[%clk 00:29:58]} {[%emt
00:00:02]} 2. c4 {[%clk 00:30:26]} {[%emt 00:00:03]} d6 {[%clk 00:30:27]} 3.
Nf3 {[%clk 00:30:28]} {[%emt 00:00:27]} g6 {[%clk 00:30:51]} {[%emt 00:00:06]}
4. Nc3 {[%clk 00:29:57]} {[%emt 00:01:01]} Bf5 {[%clk 00:31:16]} {[%emt
00:00:04]} 5. g3 {[%clk 00:29:40]} {[%emt 00:00:48]} Ne4 {[%clk 00:31:38]}
{[%emt 00:00:08]} 6. Nxe4 {[%clk 00:27:55]} {[%emt 00:02:15]} Bxe4 {[%clk
00:32:05]} {[%emt 00:00:03]} 7. Bg2 {[%clk 00:28:16]} {[%emt 00:00:08]} Bg7
{[%clk 00:32:34]} {[%emt 00:00:02]} 8. O-O {[%clk 00:28:36]} {[%emt 00:00:11]}
O-O {[%clk 00:33:00]} {[%emt 00:00:03]} 9. Bg5 {[%clk 00:26:50]} {[%emt
00:02:15]} h6 {[%clk 00:32:49]} {[%emt 00:00:42]} 10. Be3 {[%clk 00:26:45]}
{[%emt 00:00:35]} Nd7 {[%clk 00:28:21]} {[%emt 00:04:57]} 11. Qd2 {[%clk
00:25:20]} {[%emt 00:01:56]} h5 {[%clk 00:27:32]} {[%emt 00:01:18]} 12. a4
{[%clk 00:22:44]} {[%emt 00:03:07]} c5 {[%clk 00:27:04]} {[%emt 00:00:57]} 13.
Rfd1 {[%clk 00:19:32]} {[%emt 00:03:42]} Qc7 {[%clk 00:26:39]} {[%emt
00:00:56]} 14. Bg5 {[%clk 00:17:18]} {[%emt 00:02:43]} Nf6 {[%clk 00:24:56]}
{[%emt 00:02:14]} 15. Qe3 {[%clk 00:15:41]} {[%emt 00:02:06]} cxd4 {[%clk
00:19:42]} {[%emt 00:05:44]} 16. Rxd4 {[%clk 00:12:24]} {[%emt 00:03:48]} Bc6
{[%clk 00:19:44]} {[%emt 00:00:28]} 17. Bxf6 {[%clk 00:09:48]} {[%emt
00:03:04]} Bxf6 {[%clk 00:19:58]} {[%emt 00:00:17]} 18. Rd2 {[%clk 00:09:13]}
{[%emt 00:00:45]} a5 {[%clk 00:18:39]} {[%emt 00:02:10]} 19. Nd4 {[%clk
00:08:15]} {[%emt 00:01:29]} Bxg2 {[%clk 00:18:50]} {[%emt 00:00:18]} 20. Kxg2
{[%clk 00:08:41]} {[%emt 00:00:04]} Qxc4 {[%clk 00:18:50]} {[%emt 00:00:31]} 21.
b3 {[%clk 00:07:27]} {[%emt 00:01:44]} Qc7 {[%clk 00:17:45]} {[%emt 00:01:33]}
22. Rc2 {[%clk 00:06:07]} {[%emt 00:01:50]} Qb6 {[%clk 00:17:11]} {[%emt
00:01:05]} 23. Rd1 {[%clk 00:05:14]} {[%emt 00:01:23]} Rac8 {[%clk 00:17:36]}
{[%emt 00:00:05]} 24. Rcd2 {[%clk 00:04:26]} {[%emt 00:01:18]} Rfe8 {[%clk
00:17:21]} {[%emt 00:00:45]} 25. Qf3 {[%clk 00:03:34]} {[%emt 00:01:20]} Bxd4
{[%clk 00:17:33]} {[%emt 00:00:20]} 26. Rxd4 {[%clk 00:03:55]} {[%emt
00:00:10]} Qc6 {[%clk 00:17:54]} {[%emt 00:00:08]} 27. Rd5 {[%clk 00:03:14]}
{[%emt 00:01:12]} b6 {[%clk 00:17:58]} {[%emt 00:00:26]} 28. Rb5 {[%clk
00:03:37]} {[%emt 00:00:07]} Qxf3+ {[%clk 00:17:39]} {[%emt 00:00:48]} 29. Kxf3
{[%clk 00:03:58]} {[%emt 00:00:09]} Rc3+ {[%clk 00:17:39]} {[%emt 00:00:28]} 30.
Ke4 {[%clk 00:04:25]} {[%emt 00:00:05]} Rb8 {[%clk 00:18:01]} {[%emt 00:00:08]}
31. Kd4 {[%clk 00:04:25]} {[%emt 00:00:30]} Rc5 {[%clk 00:18:28]} {[%emt
00:00:03]} 32. Rxc5 {[%clk 00:04:46]} {[%emt 00:00:10]} bxc5+ {[%clk 00:18:55]}
{[%emt 00:00:02]} 33. Kc4 {[%clk 00:05:09]} {[%emt 00:00:07]} Rb4+ {[%clk
00:19:24]} {[%emt 00:00:02]} 34. Kc3 {[%clk 00:05:29]} {[%emt 00:00:10]} Kf8
{[%clk 00:19:50]} {[%emt 00:00:04]} 35. f3 {[%clk 00:05:36]} {[%emt 00:00:23]}
Ke8 {[%clk 00:20:17]} {[%emt 00:00:03]} 36. e4 {[%clk 00:06:01]} {[%emt
00:00:05]} f6 {[%clk 00:20:25]} {[%emt 00:00:21]} 37. h4 {[%clk 00:06:23]}
{[%emt 00:00:08]} Kd7 {[%clk 00:20:51]} {[%emt 00:00:04]} 38. Rd2 {[%clk
00:05:38]} {[%emt 00:01:14]} e6 {[%clk 00:21:10]} {[%emt 00:00:12]} 39. Rd1
{[%clk 00:05:46]} {[%emt 00:00:22]} Kc6 {[%clk 00:21:39]} {[%emt 00:00:02]} 40.
Rd2 {[%clk 00:05:48]} {[%emt 00:00:28]} d5 {[%clk 00:21:38]} {[%emt 00:00:30]}
41. exd5+ {[%clk 00:05:51]} {[%emt 00:00:27]} exd5 {[%clk 00:22:07]} {[%emt
00:00:01]} 42. Re2 {[%clk 00:06:13]} {[%emt 00:00:09]} d4+ {[%clk 00:22:13]}
{[%emt 00:00:24]} 43. Kc2 {[%clk 00:06:29]} {[%emt 00:00:13]} c4 {[%clk
00:22:29]} {[%emt 00:00:14]} 44. bxc4 {[%clk 00:06:55]} {[%emt 00:00:04]} Rxc4+
{[%clk 00:22:57]} {[%emt 00:00:02]} 45. Kd3 {[%clk 00:07:09]} {[%emt 00:00:16]}
Kd5 {[%clk 00:23:06]} {[%emt 00:00:21]} 46. Re8 {[%clk 00:07:01]} {[%emt
00:00:38]} Rxa4 {[%clk 00:23:13]} {[%emt 00:00:23]} 47. Rb8 {[%clk 00:07:12]}
{[%emt 00:00:19]} Ra3+ {[%clk 00:23:38]} {[%emt 00:00:05]} 48. Kc2 {[%clk
00:07:38]} {[%emt 00:00:05]} Rxf3 {[%clk 00:24:01]} {[%emt 00:00:06]} 0-1

[ePGN "0.1;DGT LiveChess/2.2.7"]

[Event "Vegagatan O1800 RPD"]
[Site "Goteborgs Schackcentrum, Vegatan 20, Gothenburg, Sweden"]
[Date "2025.05.03"]
[Round "4.4"]
[White "Christoforidis, Nicolas"]
[Black "Kaplan, Viktor"]
[Result "0-1"]
[TimeControl "29 minutes + 30 seconds per move from move one"]
[WhiteFideId "1789180"]
[BlackFideId "1780956"]
[WhiteElo "1829"]
[BlackElo "1822"]

1. d4 {[%clk 00:29:58]} {[%emt 00:00:01]} Nf6 {[%clk 00:29:59]} {[%emt
00:00:01]} 2. Bf4 {[%clk 00:30:16]} {[%emt 00:00:12]} d5 {[%clk 00:30:27]}
{[%emt 00:00:02]} 3. e3 {[%clk 00:30:12]} {[%emt 00:00:34]} c5 {[%clk
00:30:51]} {[%emt 00:00:06]} 4. Nf3 {[%clk 00:27:34]} {[%emt 00:03:09]} Nc6
{[%clk 00:31:18]} {[%emt 00:00:02]} 5. Nc3 {[%clk 00:24:23]} {[%emt 00:03:42]}
cxd4 {[%clk 00:28:29]} {[%emt 00:03:19]} 6. exd4 {[%clk 00:24:35]} {[%emt
00:00:17]} a6 {[%clk 00:28:56]} {[%emt 00:00:03]} 7. Be2 {[%clk 00:22:50]}
{[%emt 00:02:15]} Bf5 {[%clk 00:27:56]} {[%emt 00:01:30]} 8. a3 {[%clk
00:19:29]} {[%emt 00:03:51]} e6 {[%clk 00:27:57]} {[%emt 00:00:29]} 9. O-O
{[%clk 00:19:34]} {[%emt 00:00:26]} Bd6 {[%clk 00:28:02]} {[%emt 00:00:24]} 10.
Bxd6 {[%clk 00:15:13]} {[%emt 00:04:51]} Qxd6 {[%clk 00:28:03]} {[%emt
00:00:29]} 11. h3 {[%clk 00:13:20]} {[%emt 00:02:22]} O-O {[%clk 00:27:11]}
{[%emt 00:01:23]} 12. Bd3 {[%clk 00:13:02]} {[%emt 00:00:48]} Ne4 {[%clk
00:25:19]} {[%emt 00:02:22]} 13. Ne2 {[%clk 00:12:39]} {[%emt 00:00:53]} h6
{[%clk 00:25:12]} {[%emt 00:00:38]} 14. c3 {[%clk 00:12:23]} {[%emt 00:00:45]}
Bh7 {[%clk 00:23:52]} {[%emt 00:01:50]} 15. Qc2 {[%clk 00:10:19]} {[%emt
00:02:35]} b5 {[%clk 00:23:03]} {[%emt 00:01:18]} 16. Nd2 {[%clk 00:09:38]}
{[%emt 00:01:10]} f5 {[%clk 00:22:20]} {[%emt 00:01:14]} 17. f4 {[%clk
00:09:00]} {[%emt 00:01:08]} Na5 {[%clk 00:21:55]} {[%emt 00:00:55]} 18. Nf3
{[%clk 00:07:36]} {[%emt 00:01:54]} Nc4 {[%clk 00:20:30]} {[%emt 00:01:56]} 19.
Bxc4 {[%clk 00:07:32]} {[%emt 00:00:34]} bxc4 {[%clk 00:20:28]} {[%emt
00:00:31]} 20. Rfb1 {[%clk 00:05:31]} {[%emt 00:02:31]} Rab8 {[%clk 00:20:03]}
{[%emt 00:00:55]} 21. b4 {[%clk 00:04:52]} {[%emt 00:01:09]} cxb3 {[%clk
00:19:40]} {[%emt 00:00:53]} 22. Rxb3 {[%clk 00:05:14]} {[%emt 00:00:08]} Rxb3
{[%clk 00:19:52]} {[%emt 00:00:19]} 23. Qxb3 {[%clk 00:05:43]} Rb8 {[%clk
00:20:20]} {[%emt 00:00:02]} 24. Qc2 {[%clk 00:06:00]} {[%emt 00:00:13]} Qb6
{[%clk 00:19:29]} {[%emt 00:01:20]} 25. Ne5 {[%clk 00:05:11]} {[%emt 00:01:19]}
Qb2 {[%clk 00:19:08]} {[%emt 00:00:51]} 26. Rc1 {[%clk 00:03:39]} {[%emt
00:02:02]} Qxa3 {[%clk 00:18:25]} {[%emt 00:01:13]} 27. Rb1 {[%clk 00:03:36]}
{[%emt 00:00:34]} Rb5 {[%clk 00:16:08]} {[%emt 00:02:46]} 28. Rb4 {[%clk
00:02:15]} {[%emt 00:01:51]} Nxc3 {[%clk 00:04:14]} {[%emt 00:12:24]} 29. Rxb5
{[%clk 00:02:31]} {[%emt 00:00:14]} Nxe2+ {[%clk 00:04:42]} {[%emt 00:00:02]}
30. Qxe2 {[%clk 00:02:57]} {[%emt 00:00:04]} Qc1+ {[%clk 00:04:43]} {[%emt
00:00:30]} 31. Kh2 {[%clk 00:03:05]} {[%emt 00:00:22]} axb5 {[%clk 00:04:55]}
{[%emt 00:00:18]} 32. Qxb5 {[%clk 00:02:06]} {[%emt 00:01:28]} Qxf4+ {[%clk
00:05:22]} {[%emt 00:00:03]} 33. Kh1 {[%clk 00:02:28]} {[%emt 00:00:09]} Qc1+
{[%clk 00:05:45]} {[%emt 00:00:06]} 34. Kh2 {[%clk 00:02:57]} {[%emt 00:00:01]}
Qc8 {[%clk 00:03:20]} {[%emt 00:02:55]} 35. Qc5 {[%clk 00:03:15]} {[%emt
00:00:13]} Qe8 {[%clk 00:03:06]} {[%emt 00:00:44]} 36. Qd6 {[%clk 00:02:57]}
{[%emt 00:00:47]} Bg6 {[%clk 00:02:48]} {[%emt 00:00:47]} 37. g3 {[%clk
00:02:35]} {[%emt 00:00:53]} Bf7 {[%clk 00:02:42]} {[%emt 00:00:35]} 38. Qc7
{[%clk 00:03:02]} {[%emt 00:00:04]} Bg6 {[%clk 00:01:29]} {[%emt 00:01:42]} 39.
Kg2 {[%emt 00:00:13]} Kh7 {[%clk 00:01:13]} {[%emt 00:00:45]} 40. Qd6 {[%clk
00:03:24]} {[%emt 00:00:27]} f4 {[%clk 00:00:45]} {[%emt 00:00:58]} 41. Nxg6
{[%clk 00:03:36]} {[%emt 00:00:19]} Qxg6 {[%clk 00:01:10]} {[%emt 00:00:04]} 42.
Qxf4 {[%clk 00:04:01]} {[%emt 00:00:04]} Qf5 {[%clk 00:01:04]} {[%emt
00:00:37]} 43. Qe3 {[%clk 00:04:11]} {[%emt 00:00:20]} Kg6 {[%clk 00:01:09]}
{[%emt 00:00:26]} 44. g4 {[%clk 00:04:30]} {[%emt 00:00:10]} Qc2+ {[%clk
00:01:20]} {[%emt 00:00:19]} 45. Kg3 {[%clk 00:04:52]} {[%emt 00:00:08]} Qc7+
{[%clk 00:01:32]} {[%emt 00:00:17]} 46. Kf3 {[%clk 00:05:03]} {[%emt 00:00:19]}
Kf7 {[%clk 00:01:37]} {[%emt 00:00:26]} 47. h4 {[%clk 00:04:00]} {[%emt
00:01:34]} Qh2 {[%clk 00:01:34]} {[%emt 00:00:32]} 48. Qf4+ {[%clk 00:04:22]}
{[%emt 00:00:08]} Qxf4+ {[%clk 00:02:01]} {[%emt 00:00:03]} 49. Kxf4 {[%clk
00:04:52]} g6 {[%clk 00:01:40]} {[%emt 00:00:50]} 50. g5 {[%clk 00:04:04]}
{[%emt 00:01:18]} h5 {[%clk 00:01:41]} {[%emt 00:00:29]} 51. Ke3 {[%clk
00:04:12]} {[%emt 00:00:22]} Ke7 {[%clk 00:01:54]} {[%emt 00:00:17]} 52. Kf3
{[%clk 00:04:37]} {[%emt 00:00:05]} Kd6 {[%clk 00:01:21]} {[%emt 00:01:03]} 53.
Kf4 {[%clk 00:04:56]} {[%emt 00:00:10]} e5+ {[%clk 00:01:49]} {[%emt 00:00:02]}
54. dxe5+ {[%clk 00:02:16]} {[%emt 00:03:11]} Ke6 {[%clk 00:02:19]} 55. Kf3
{[%clk 00:02:34]} {[%emt 00:00:13]} Kxe5 {[%clk 00:02:46]} {[%emt 00:00:02]} 56.
Ke3 {[%clk 00:03:03]} {[%emt 00:00:01]} d4+ {[%clk 00:03:14]} {[%emt 00:00:02]}
57. Kd3 {[%clk 00:03:32]} {[%emt 00:00:01]} Kd5 {[%clk 00:03:43]} {[%emt
00:00:01]} 58. Kd2 {[%clk 00:03:56]} {[%emt 00:00:06]} Ke4 {[%clk 00:04:12]}
{[%emt 00:00:02]} 59. Ke2 {[%clk 00:04:25]} Kf4 {[%clk 00:04:30]} {[%emt
00:00:12]} 0-1